[Event "V Open Semana Santa Alicante 2021"]
[Site "Alicante"]
[Date "2021.04.03"]
[Round "7.8"]
[White "Camacho Collados, Marcos"]
[Black "Del Amo Carbo, Jordi"]
[Result "1/2-1/2"]
[ECO "A46"]
[WhiteElo "2400"]
[BlackElo "2122"]
[Annotator "ChessBase"]
[PlyCount "110"]
[EventDate "2021.03.31"]
[EventType "swiss"]
[EventCountry "ESP"]
[SourceTitle "playchess.com"]
[Source "ChessBase"]
[SourceQuality "1"]
[TimeControl "5400+30"]

1. d4 {[%emt 0:00:00]} Nf6 {[%emt 0:00:04]} 2. Nf3 {[%emt 0:00:00]} e6 {[%emt 0:00:08]} 3. e3 {[%emt 0:00:00]} b6 {[%emt 0:00:09]} 4. Nbd2 {[%emt 0:00:10]} Bb7 {[%emt 0:00:11]} 5. Bd3 {[%emt 0:00:11]} d5 {[%emt 0:00:07]} 6. O-O {[%emt 0:00:18]} Be7 {[%emt 0:00:09]} 7. Ne5 {[%emt 0:02:04]} O-O {[%emt 0:01:59]} 8. Qf3 {[%emt 0:01:49]} Nbd7 {[%emt 0:05:03]} 9. c3 {[%emt 0:08:26]} c5 {[%emt 0:03:35]} 10. Qh3 {[%emt 0:05:31]} g6 {[%emt 0:01:27]} 11. Ndf3 {[%emt 0:03:39]} Nxe5 {[%emt 0:06:18]} 12. Nxe5 {[%emt 0:00:51]} Ne4 {[%emt 0:05:42]} 13. f3 {[%emt 0:00:43]} Nd6 {[%emt 0:00:58]} 14. Bd2 {[%emt 0:01:23]} f5 {[%emt 0:01:27]} 15. Be1 {[%emt 0:07:50]} Nf7 {[%emt 0:02:58]} 16. Bg3 {[%emt 0:03:01]} Bd6 {[%emt 0:02:36]} 17. Nxf7 {[%emt 0:08:35]} Rxf7 {[%emt 0:00:13]} 18. Rad1 {[%emt 0:06:50]} a5 {[%emt 0:02:19]} 19. Rfe1 {[%emt 0:01:20]} Qc7 {[%emt 0:05:40]} 20. Bh4 {[%emt 0:10:17]} Ba6 {[%emt 0:06:09]} 21. Bb1 {[%emt 0:01:21]} Re8 {[%emt 0:03:48]} 22. e4 {[%emt 0:01:01]} cxd4 {[%emt 0:02:21]} 23. exf5 {[%emt 0:01:03]} gxf5 {[%emt 0:01:37]} 24. cxd4 {[%emt 0:00:10]} Bf4 {[%emt 0:05:55]} 25. Bf2 {[%emt 0:00:19]} Qd6 {[%emt 0:01:23]} 26. Qh4 Rc8 {[%emt 0:01:41]} 27. Qh5 {[%emt 0:06:46]} Rg7 {[%emt 0:02:11]} 28. Kh1 {[%emt 0:01:19]} Rg6 {[%emt 0:00:42]} 29. Qh3 {[%emt 0:02:26]} Rh6 {[%emt 0:03:05]} 30. Bh4 {[%emt 0:00:04]} Rc7 {[%emt 0:06:28]} 31. g3 {[%emt 0:06:05]} Bg5 {[%emt 0:00:01]} 32. Re5 {[%emt 0:13:57]} Bf6 {[%emt 0:02:14]} 33. Ree1 {[%emt 0:04:16]} Kf7 {[%emt 0:01:55]} 34. Qg2 {[%emt 0:01:52]} Bxh4 {[%emt 0:03:20]} 35. gxh4 {[%emt 0:00:01]} Qf4 {[%emt 0:06:33]} 36. h5 {[%emt 0:00:20]} Rxh5 {[%emt 0:00:12]} 37. Rg1 {[%emt 0:00:13]} Kf6 {[%emt 0:00:19]} 38. Rde1 {[%emt 0:00:37]} Rh6 {[%emt 0:04:18]} 39. Qf2 {[%emt 0:02:47]} Rg6 {[%emt 0:01:29]} 40. Rxg6+ {[%emt 0:01:24]} hxg6 {[%emt 0:00:01]} 41. Kg2 {[%emt 0:00:15]} Rh7 {[%emt 0:00:42]} 42. Qg3 {[%emt 0:01:00]} Qd2+ {[%emt 0:00:44]} 43. Kg1 {[%emt 0:00:30]} Qxd4+ {[%emt 0:01:45]} 44. Kh1 {[%emt 0:00:01]} e5 {[%emt 0:00:37]} 45. Rg1 {[%emt 0:00:22]} Qh4 {[%emt 0:03:08]} 46. Qxg6+ {[%emt 0:00:02]} Ke7 {[%emt 0:00:23]} 47. Rg2 {[%emt 0:01:38]} Qe1+ {[%emt 0:01:25]} 48. Rg1 {[%emt 0:00:02]} Qh4 {[%emt 0:00:05]} 49. Qg5+ {[%emt 0:00:42]} Qxg5 {[%emt 0:00:09]} 50. Rxg5 {[%emt 0:00:01]} Bc8 {[%emt 0:00:49]} 51. Bxf5 {[%emt 0:00:40]} Kf6 {[%emt 0:00:56]} 52. Bxh7 {[%emt 0:00:18]} Kxg5 {[%emt 0:00:01]} 53. Kg2 {[%emt 0:00:24]} Kf4 {[%emt 0:00:06]} 54. Kf2 {[%emt 0:00:40]} Bb7 {[%emt 0:00:34]} 55. Bd3 {[%emt 0:00:53]} Bc6 {[%emt 0:00:31]} 1/2-1/2

[Event "V Open Semana Santa Alicante 2021"]
[Site "Alicante"]
[Date "2021.04.03"]
[Round "7.9"]
[White "Vilanova Corbi, Jorge"]
[Black "Garrido Outon, Alex"]
[Result "0-1"]
[ECO "D37"]
[WhiteElo "2200"]
[BlackElo "2362"]
[Annotator "ChessBase"]
[PlyCount "102"]
[EventDate "2021.03.31"]
[EventType "swiss"]
[EventCountry "ESP"]
[SourceTitle "playchess.com"]
[Source "ChessBase"]
[SourceQuality "1"]
[TimeControl "5400+30"]

1. Nf3 {[%emt 0:00:20]} d5 {[%emt 0:00:42]} 2. d4 {[%emt 0:00:30]} Nf6 {[%emt 0:01:07]} 3. c4 {[%emt 0:00:39]} e6 {[%emt 0:00:38]} 4. Nc3 {[%emt 0:00:44]} a6 {[%emt 0:00:42]} 5. cxd5 {[%emt 0:09:09]} exd5 {[%emt 0:00:10]} 6. Bg5 {[%emt 0:00:15]} Be6 {[%emt 0:00:26]} 7. Bxf6 {[%emt 0:01:28]} Qxf6 {[%emt 0:00:13]} 8. Qb3 {[%emt 0:01:02]} Ra7 {[%emt 0:01:01]} 9. g3 {[%emt 0:19:39]} Bd6 {[%emt 0:03:30]} 10. Bg2 {[%emt 0:01:52]} Qd8 {[%emt 0:04:03]} 11. O-O {[%emt 0:02:44]} c6 {[%emt 0:03:38]} 12. Qc2 {[%emt 0:15:08]} Nd7 {[%emt 0:05:16]} 13. e4 {[%emt 0:04:46]} dxe4 {[%emt 0:02:04]} 14. Qxe4 {[%emt 0:01:55]} O-O {[%emt 0:04:17]} 15. d5 {[%emt 0:06:33]} cxd5 {[%emt 0:10:11]} 16. Nxd5 {[%emt 0:00:27]} Re8 {[%emt 0:06:53]} 17. Rfe1 {[%emt 0:06:31]} Ra8 {[%emt 0:03:31]} 18. Nd4 {[%emt 0:06:10]} Qa5 {[%emt 0:14:06]} 19. Nxe6 {[%emt 0:07:16]} Rxe6 {[%emt 0:00:35]} 20. b4 {[%emt 0:01:25]} Qa4 {[%emt 0:06:08]} 21. Qc4 {[%emt 0:02:14]} Ne5 {[%emt 0:04:59]} 22. Nb6 {[%emt 0:02:47]} Qe8 {[%emt 0:06:25]} 23. Qc3 {[%emt 0:00:20]} Rd8 {[%emt 0:00:35]} 24. h3 {[%emt 0:03:56]} h5 {[%emt 0:06:33]} 25. a3 {[%emt 0:01:39]} h4 {[%emt 0:01:18]} 26. f4 {[%emt 0:00:55]} Nd3 {[%emt 0:04:09]} 27. Rxe6 {[%emt 0:01:55]} Qxe6 {[%emt 0:00:22]} 28. Nc4 {[%emt 0:00:33]} Bb8 {[%emt 0:02:16]} 29. Rd1 {[%emt 0:00:59]} Qe2 {[%emt 0:03:15]} 30. Qd2 {[%emt 0:00:16]} Qe6 {[%emt 0:01:06]} 31. Ne5 {[%emt 0:00:28]} Bxe5 {[%emt 0:01:39]} 32. fxe5 {[%emt 0:00:05]} Qb6+ {[%emt 0:01:28]} 33. Kf1 {[%emt 0:00:40]} Qd4 {[%emt 0:02:01]} 34. Qe2 {[%emt 0:00:35]} hxg3 {[%emt 0:00:42]} 35. Be4 {[%emt 0:00:20]} g2+ {[%emt 0:00:00]} 36. Bxg2 {[%emt 0:00:12]} f5 {[%emt 0:00:51]} 37. exf6 {[%emt 0:00:59]} Qxf6+ {[%emt 0:00:09]} 38. Bf3 {[%emt 0:00:35]} Qf5 {[%emt 0:00:32]} 39. Qe4 {[%emt 0:00:51]} Qxh3+ {[%emt 0:00:27]} 40. Bg2 {[%emt 0:00:07]} Qg3 {[%emt 0:01:15]} 41. Qe6+ {[%emt 0:00:37]} Kh8 {[%emt 0:00:15]} 42. Qh3+ {[%emt 0:00:32]} Qxh3 {[%emt 0:00:01]} 43. Bxh3 {[%emt 0:00:05]} Rf8+ {[%emt 0:00:09]} 44. Ke2 {[%emt 0:01:09]} Nf4+ {[%emt 0:00:55]} 45. Ke3 {[%emt 0:00:06]} Nxh3 {[%emt 0:00:08]} 46. Rh1 {[%emt 0:00:03]} g5 {[%emt 0:00:59]} 47. Rxh3+ {[%emt 0:00:05]} Kg7 {[%emt 0:00:05]} 48. Kd4 {[%emt 0:00:50]} Kg6 {[%emt 0:00:25]} 49. Ke5 {[%emt 0:01:28]} g4 {[%emt 0:00:51]} 50. Rg3 {[%emt 0:00:34]} Kg5 {[%emt 0:00:06]} 51. Kd6 {[%emt 0:00:08]} Rf3 {[%emt 0:01:00]} 0-1

[Event "V Open Semana Santa Alicante 2021"]
[Site "Alicante"]
[Date "2021.04.03"]
[Round "7.10"]
[White "Aranda Marin, Cristian"]
[Black "Robledo Sanchez, Carlos"]
[Result "1-0"]
[ECO "A45"]
[WhiteElo "2361"]
[BlackElo "1959"]
[Annotator "ChessBase"]
[PlyCount "55"]
[EventDate "2021.03.31"]
[EventType "swiss"]
[EventCountry "ESP"]
[SourceTitle "playchess.com"]
[Source "ChessBase"]
[SourceQuality "1"]
[TimeControl "5400+30"]

1. d4 Nf6 2. Bf4 d5 3. c3 e6 4. e3 Bd6 5. Bg3 O-O 6. Nd2 b6 7. Ngf3 Bb7 8. Qc2 c5 9. Bd3 Nc6 10. Rd1 h6 11. Bb5 Rc8 12. Qb1 Bxg3 13. hxg3 Qd6 14. O-O Nd7 15. Rfe1 f5 16. c4 a6 17. Ba4 dxc4 18. Nxc4 Qe7 19. dxc5 bxc5 20. Qd3 Rcd8 21. Qd6 Nde5 22. Qxe7 Nxf3+ 23. gxf3 Nxe7 24. Ne5 Rd5 25. f4 Rfd8 26. Rc1 R8d6 27. Bb3 Rd2 28. Nc4 1-0

[Event "V Open Semana Santa Alicante 2021"]
[Site "Alicante"]
[Date "2021.04.04"]
[Round "8.1"]
[White "Serarols Mabras, Bernat"]
[Black "Cuenca Jimenez, Jose Fernando"]
[Result "1/2-1/2"]
[ECO "E43"]
[WhiteElo "2358"]
[BlackElo "2506"]
[Annotator "ChessBase"]
[PlyCount "140"]
[EventDate "2021.03.31"]
[EventType "swiss"]
[EventCountry "ESP"]
[SourceTitle "playchess.com"]
[Source "ChessBase"]
[SourceQuality "1"]
[TimeControl "5400+30"]

1. d4 {[%emt 0:00:00]} Nf6 {[%emt 0:00:02]} 2. c4 {[%emt 0:00:00]} e6 {[%emt 0:00:18]} 3. Nc3 {[%emt 0:00:00]} Bb4 {[%emt 0:01:00]} 4. e3 {[%emt 0:00:16]} b6 {[%emt 0:00:10]} 5. Bd2 {[%emt 0:03:38]} Bb7 {[%emt 0:03:46]} 6. Nf3 {[%emt 0:00:39]} O-O {[%emt 0:01:20]} 7. Bd3 {[%emt 0:00:05]} d5 {[%emt 0:00:53]} 8. cxd5 {[%emt 0:00:10]} exd5 {[%emt 0:00:20]} 9. Rc1 {[%emt 0:00:05]} a6 {[%emt 0:11:21]} 10. Ne5 {[%emt 0:02:24]} Bd6 {[%emt 0:03:12]} 11. O-O {[%emt 0:00:08]} c5 {[%emt 0:01:17]} 12. f4 {[%emt 0:04:08]} Nc6 {[%emt 0:00:30]} 13. Ng4 {[%emt 0:00:30]} Be7 {[%emt 0:23:07]} 14. dxc5 {[%emt 0:11:24]} bxc5 {[%emt 0:07:46]} 15. b3 {[%emt 0:11:18]} Nb4 {[%emt 0:18:41]} 16. Bb1 {[%emt 0:05:47]} c4 {[%emt 0:02:38]} 17. Nxf6+ {[%emt 0:18:31]} Bxf6 {[%emt 0:00:09]} 18. bxc4 {[%emt 0:01:06]} dxc4 {[%emt 0:02:14]} 19. Ne4 {[%emt 0:03:14]} Be7 {[%emt 0:08:03]} 20. Rxc4 {[%emt 0:06:41]} a5 {[%emt 0:00:03]} 21. Bc3 {[%emt 0:11:36]} Nd5 {[%emt 0:06:02]} 22. Bd4 {[%emt 0:12:30]} Ba6 {[%emt 0:01:04]} 23. Qg4 {[%emt 0:05:27]} g6 {[%emt 0:01:02]} 24. Bd3 {[%emt 0:01:06]} f5 {[%emt 0:02:13]} 25. Qf3 fxe4 26. Qxe4 {[%emt 0:00:02]} Qd7 {[%emt 0:01:32]} 27. Rd1 {[%emt 0:01:10]} Nf6 {[%emt 0:01:25]} 28. Bxf6 {[%emt 0:00:56]} Bxf6 {[%emt 0:00:18]} 29. Rc6 {[%emt 0:00:17]} Bxd3 {[%emt 0:01:16]} 30. Rxd3 {[%emt 0:00:01]} Qf7 {[%emt 0:00:36]} 31. Rdd6 {[%emt 0:01:09]} Rae8 {[%emt 0:00:43]} 32. Qd3 {[%emt 0:00:51]} Qxa2 {[%emt 0:00:27]} 33. h3 {[%emt 0:00:11]} Bg7 {[%emt 0:00:42]} 34. Rd7 {[%emt 0:00:41]} Rf7 {[%emt 0:00:45]} 35. Rxf7 {[%emt 0:00:44]} Qxf7 {[%emt 0:00:12]} 36. Ra6 {[%emt 0:00:05]} Qe7 {[%emt 0:01:17]} 37. Kf2 {[%emt 0:00:05]} Qc5 {[%emt 0:00:25]} 38. Kf3 {[%emt 0:01:02]} Kh8 {[%emt 0:00:29]} 39. e4 {[%emt 0:00:08]} Qc3 {[%emt 0:01:16]} 40. Qxc3 {[%emt 0:00:01]} Bxc3 {[%emt 0:00:00]} 41. h4 {[%emt 0:00:24]} Re7 {[%emt 0:00:33]} 42. e5 {[%emt 0:00:05]} Kg7 {[%emt 0:00:14]} 43. Ke4 {[%emt 0:00:04]} h5 {[%emt 0:00:43]} 44. Kf3 {[%emt 0:01:28]} Rd7 {[%emt 0:00:48]} 45. Rc6 {[%emt 0:00:51]} Be1 {[%emt 0:00:48]} 46. g4 {[%emt 0:00:05]} Bxh4 {[%emt 0:00:43]} 47. gxh5 {[%emt 0:00:37]} gxh5 {[%emt 0:00:02]} 48. Ra6 {[%emt 0:00:24]} Bd8 {[%emt 0:00:30]} 49. f5 {[%emt 0:00:05]} Rd4 {[%emt 0:01:00]} 50. Ra7+ {[%emt 0:00:17]} Kf8 {[%emt 0:00:19]} 51. Ke3 {[%emt 0:01:19]} Rd1 {[%emt 0:00:18]} 52. Ke4 {[%emt 0:00:12]} h4 {[%emt 0:00:24]} 53. f6 {[%emt 0:00:04]} h3 {[%emt 0:00:54]} 54. Rh7 {[%emt 0:00:05]} h2 {[%emt 0:00:38]} 55. Rxh2 {[%emt 0:00:12]} Kf7 {[%emt 0:00:27]} 56. Rb2 {[%emt 0:00:16]} Ke6 {[%emt 0:00:31]} 57. Rb8 {[%emt 0:00:42]} Rd5 {[%emt 0:00:32]} 58. Kf4 {[%emt 0:00:47]} Rd4+ {[%emt 0:00:22]} 59. Ke3 {[%emt 0:00:01]} Rd1 {[%emt 0:00:35]} 60. Ke4 {[%emt 0:00:34]} Re1+ {[%emt 0:00:29]} 61. Kf4 {[%emt 0:00:37]} Bc7 {[%emt 0:00:32]} 62. Re8+ {[%emt 0:00:05]} Kd5 {[%emt 0:00:11]} 63. Kg4 {[%emt 0:01:11]} Rf1 {[%emt 0:00:49]} 64. e6 {[%emt 0:01:07]} Rxf6 {[%emt 0:00:30]} 65. e7 {[%emt 0:00:06]} Rf4+ {[%emt 0:00:30]} 66. Kg5 {[%emt 0:00:51]} Ke6 {[%emt 0:00:26]} 67. Rc8 {[%emt 0:00:11]} Rf5+ {[%emt 0:00:32]} 68. Kg4 {[%emt 0:00:09]} Rf4+ {[%emt 0:00:24]} 69. Kg5 {[%emt 0:00:02]} Kxe7 {[%emt 0:00:33]} 70. Rxc7+ {[%emt 0:00:05]} Kd6 {[%emt 0:00:02]} 1/2-1/2

[Event "V Open Semana Santa Alicante 2021"]
[Site "Alicante"]
[Date "2021.04.04"]
[Round "8.9"]
[White "Motos Abellan, Daniel"]
[Black "Campos Gambuti, Luis Maria"]
[Result "0-1"]
[ECO "B20"]
[WhiteElo "2166"]
[BlackElo "2370"]
[Annotator "NA RC"]
[PlyCount "164"]
[EventDate "2021.03.31"]
[EventType "swiss"]
[EventCountry "ESP"]
[SourceTitle "playchess.com"]
[Source "ChessBase"]
[SourceQuality "1"]
[TimeControl "5400+30"]

1. e4 {[%emt 0:00:12]} c5 {[%emt 0:00:00]} 2. c4 {[%emt 0:00:16]} Nc6 {[%emt 0:00:25]} 3. Nc3 {[%emt 0:00:06]} g6 {[%emt 0:00:34]} 4. g3 {[%emt 0:00:06]} Bg7 {[%emt 0:00:11]} 5. Bg2 {[%emt 0:00:05]} a6 {[%emt 0:00:28]} 6. Nge2 {[%emt 0:00:09]} d6 {[%emt 0:01:34]} 7. O-O {[%emt 0:01:30]} Bg4 {[%emt 0:01:58]} 8. f3 {[%emt 0:02:03]} Bd7 {[%emt 0:00:22]} 9. d3 {[%emt 0:00:07]} Rb8 {[%emt 0:01:26]} 10. Be3 {[%emt 0:01:31]} Nd4 {[%emt 0:01:35]} 11. a4 {[%emt 0:01:32]} e6 {[%emt 0:00:25]} 12. Rb1 {[%emt 0:00:13]} Qb6 {[%emt 0:07:16]} 13. Qd2 {[%emt 0:03:23]} Ne7 {[%emt 0:00:25]} 14. Bh6 $11 {[%emt 0:00:57]} Nb3 {[%emt 0:13:14]} 15. Qg5 {[%emt 0:02:30]} f6 {[%emt 0:01:05]} 16. Qe3 {[%emt 0:00:02]} O-O {[%emt 0:01:26]} 17. Bxg7 {[%emt 0:02:55]} Kxg7 {[%emt 0:00:03]} 18. Bh3 {[%emt 0:07:51]} Nc6 {[%emt 0:01:44]} 19. f4 {[%emt 0:04:16]} Rbe8 {[%emt 0:01:30]} 20. g4 {[%emt 0:03:54]} f5 {[%emt 0:05:29]} 21. gxf5 {[%emt 0:00:19]} exf5 {[%emt 0:00:56]} 22. Nd5 {[%emt 0:00:27]} Qd8 {[%emt 0:00:26]} 23. Nec3 {[%emt 0:04:25]} Ncd4 {[%emt 0:05:09]} 24. Rf2 {[%emt 0:05:50]} Bc6 {[%emt 0:03:57]} 25. Re1 {[%emt 0:03:54]} Kh8 {[%emt 0:04:40]} 26. Bg2 {[%emt 0:00:44]} b5 {[%emt 0:09:48]} 27. axb5 {[%emt 0:02:32]} axb5 {[%emt 0:00:01]} 28. cxb5 {[%emt 0:11:14]} Nxb5 {[%emt 0:00:18]} 29. Nxb5 {[%emt 0:01:04]} Bxd5 {[%emt 0:00:52]} 30. e5 {[%emt 0:02:42]} Bxg2 {[%emt 0:01:51]} 31. Rxg2 {[%emt 0:04:17]} dxe5 {[%emt 0:03:22]} 32. fxe5 {[%emt 0:00:02]} Nd4 {[%emt 0:00:14]} 33. Nxd4 {[%emt 0:02:46]} cxd4 {[%emt 0:00:08]} 34. Qh6 {[%emt 0:01:00]} Re6 {[%emt 0:00:27]} 35. h4 {[%emt 0:04:09]} Rfe8 {[%emt 0:01:20]} 36. h5 {[%emt 0:01:29]} Qh4 {[%emt 0:00:36]} 37. Kf1 {[%emt 0:04:09]} Rc8 {[%emt 0:06:22]} 38. Qg5 {[%emt 0:13:45]} Qxg5 {[%emt 0:08:35]} 39. Rxg5 {[%emt 0:00:08]} Kg7 {[%emt 0:00:02]} 40. Rg2 {[%emt 0:01:16]} Rc5 {[%emt 0:00:09]} 41. hxg6 {[%emt 0:02:09]} hxg6 {[%emt 0:00:05]} 42. Rge2 {[%emt 0:00:47]} Rb5 {[%emt 0:00:43]} 43. Kf2 {[%emt 0:00:25]} Rb3 {[%emt 0:00:02]} 44. Rd2 {[%emt 0:00:30]} g5 {[%emt 0:02:20]} 45. Kg3 {[%emt 0:00:13]} Kf7 {[%emt 0:00:24]} 46. Kf3 {[%emt 0:00:12]} Reb6 {[%emt 0:00:06]} 47. Rg1 {[%emt 0:01:10]} Rg6 {[%emt 0:01:28]} 48. Ra1 {[%emt 0:00:20]} Re6 {[%emt 0:01:09]} 49. Ra4 {[%emt 0:00:35]} Rxe5 {[%emt 0:01:49]} 50. Rxd4 {[%emt 0:00:02]} Reb5 {[%emt 0:01:10]} 51. Rc2 {[%emt 0:01:04]} Rb6 {[%emt 0:01:29]} 52. Rd5 {[%emt 0:00:39]} Kg6 {[%emt 0:01:15]} 53. Rcc5 {[%emt 0:00:24]} Rf6 {[%emt 0:00:31]} 54. Rc2 {[%emt 0:01:03]} Rb4 {[%emt 0:00:18]} 55. Rd8 {[%emt 0:00:42]} g4+ {[%emt 0:00:13]} 56. Kg3 {[%emt 0:00:14]} Kg5 {[%emt 0:00:33]} 57. Rg8+ {[%emt 0:01:31]} Rg6 {[%emt 0:00:01]} 58. Rxg6+ {[%emt 0:01:04]} Kxg6 {[%emt 0:00:01]} 59. Kh4 {[%emt 0:00:17]} Rf4 {[%emt 0:00:27]} 60. Rc6+ {[%emt 0:01:49]} Kf7 {[%emt 0:00:01]} 61. Kg3 {[%emt 0:02:27]} Rf3+ {[%emt 0:00:12]} 62. Kg2 {[%emt 0:00:03]} Rxd3 {[%emt 0:00:10]} 63. b4 {[%emt 0:00:17]} Rb3 {[%emt 0:00:24]} 64. Rc5 {[%emt 0:01:46]} Kf6 {[%emt 0:00:12]} 65. b5 {[%emt 0:00:05]} Kg5 {[%emt 0:00:17]} 66. Kf2 {[%emt 0:00:24]} Kf4 {[%emt 0:00:19]} 67. Rc4+ {[%emt 0:00:05]} Ke5 {[%emt 0:00:04]} 68. Rc5+ {[%emt 0:00:05]} Ke4 {[%emt 0:00:09]} 69. Rc4+ {[%emt 0:00:07]} Kd5 {[%emt 0:00:07]} 70. Rc8 {[%emt 0:01:21]} Rxb5 {[%emt 0:00:02]} 71. Re8 {[%emt 0:00:18]} Rb3 {[%emt 0:00:39]} 72. Kg2 {[%emt 0:00:16]} f4 {[%emt 0:00:45]} 73. Rd8+ {[%emt 0:00:20]} Ke4 {[%emt 0:03:13]} 74. Re8+ {[%emt 0:00:05]} Kd3 {[%emt 0:00:07]} 75. Kf2 {[%emt 0:01:47]} Rb2+ {[%emt 0:00:12]} 76. Kf1 {[%emt 0:00:09]} g3 {[%emt 0:00:12]} 77. Ra8 {[%emt 0:00:51]} f3 {[%emt 0:00:51]} 78. Rd8+ {[%emt 0:00:53]} Ke4 {[%emt 0:00:07]} 79. Re8+ {[%emt 0:00:20]} Kd5 {[%emt 0:00:01]} 80. Rd8+ {[%emt 0:00:12]} Ke6 {[%emt 0:00:02]} 81. Rd1 {[%emt 0:00:33]} Rh2 {[%emt 0:00:13]} 82. Kg1 {[%emt 0:01:43]} f2+ {[%emt 0:00:12]} 0-1